Workbook

Sheet bar schedule
B1: Version: 3.1. - FREE LITE VERSION | M1: © 2010-2021 Damian Janicki
E2: YourSpreadsheets™ Your Office Address Goes Here www.YourSpreadsheets.co.uk Tel: 010 1234 567890 (example only) | N2: 86 MARGERY STREET, LONDON | R2: Status: | T2: C
R3: Drawing No: | T3: A1/503
R4: Sheet No: | T4: 1
N5: Job No: | P5: 22190 | R5: Revision: | T5: A
C6: Section: | E6: Grid A/1 to grid D/6 | N6: Prepared By: | P6: DJ | R6: Date: | T6: =TODAY() -> 2021-05-31
C7: Location: | E7: Foundations | N7: Checked By: | P7: DJ | R7: Last Revised: | T7: 2013-11-26 | AR7: extra dimension is 1: horizontal 2: vertical | AY7: ='bar weights'!$AM$2 -> 1 | DT7: NOTE: 1 means cell input required. And 2 means that user should specify something but this is not automatically calculated/checked - and so different hatching applies in the input lengths table
AR8: calculate extra dims | AX8: ='bar weights'!AL2 -> TRUE | AY8: =IF(AX8=TRUE,1,0) -> 1 | BI8: the below table is for checking only | DT8: Colour cell A | DU8: Colour cell B | DV8: Colour cell C | DW8: Colour cell D | DX8: Colour cell E | DY8: Colour cell F | DZ8: Colour cell R
C9: Member | F9: Bar mark | G9: Type and size | I9: No. of Mbrs | J9: No. of bars in each | K9: Total No. | L9: Length of each bar † [mm] | M9: Shape code | N9: A * [mm] | O9: B * [mm] | P9: C * [mm] | Q9: D * [mm] | R9: E * [mm] | S9: F * [mm] | T9: R * [mm] | U9: Weight [kg] | V9: Rev. | Y9: FILL IN LENGTHS BELOW | AR9: auto jump | AX9: ='bar weights'!AK2 -> TRUE | AY9: =IF(AX9=TRUE,1,0) -> 1 | BI9: shape code: | BK9: dia: | DN9: Shape Code
Y10: A * [mm] | Z10: B * [mm] | AA10: C * [mm] | AB10: D * [mm] | AC10: E * [mm] | AD10: F * [mm] | AE10: R * [mm] | AF10: Overwrite length [mm] | AR10: popup window | AX10: ='bar weights'!AJ2 -> TRUE | AY10: =IF(AX10=TRUE,1,0) -> 1 | BI10: AA= | BK10: BB= | BM10: CC= | BO10: DD= | BQ10: EE= | BS10: FF= | BU10: RR=
AW11: for calculating extra dimensions in shape code 14, 15, 24, 26, 27, 28, 29, 34, 35, 36, 46 | AX11: below is a guide which bends are required for which shapde code: REQUIRED DIMENSION IS HORIZONTAL: IF(OR(M13=14,M13=15) A,B -> D IF(OR(M13=24,M13=26,M13=29) B,D -> E IF(OR(M13=27,M13=28) A,D -> E IF(OR(M13=34,M13=35,M13=46) B,D -> F IF(OR(M13=36) A,E -> F REQUIRED DIMENSION IS DIAGONAL: IF(OR(M13=14,M13=15) B,D -> A IF(OR(M13=24,M13=26,M13=29) D,E -> B IF(OR(M13=27,M13=28) D,E -> A IF(OR(M13=34,M13=35,M13=46) D,F -> B IF(OR(M13=36) E,F -> A | AY11: equations taken from a separate spreadsheet. And below is a guide which case applies to which bar: case 1: 14, case 2: 29 case 3: 26, 34, 35, 46 case 4: 15, 27, 28, 36 case 5: 24 -> d2+e2=b2 | BI11: first calculates dimensions in the second cell [typically used to pick correct P1, P2, x,q, etc], and then in the first cell [typically used for any specific length requirements given in the code e.g. B/2+max(5d,90mm)] | BW11: shape code: | EB11: for calculating tonnage per this sheet | EG11: this area is used for merging/unmerging rows | EX11: this area is for clearing entries, and undoing it | FQ11: this area is used for refreshing conditional formatting - was simpler to just include these cells than rewritting the whole vba I had for refreshing conditional formatting in the previous version of the spreadsheet
AI12: L | AJ12: A | AK12: B | AL12: C | AM12: D | AN12: E | AO12: F | AP12: R | AR12: does shape code exist in the Standrad? | AS12: column of FIRST bend required to calculate extra dimension | AT12: column of SECOND bend required to calculate extra dimension | AU12: column of extra dimension | AW12: A | AX12: B | AY12: D (extra dimension, not in BS8666:2005) | AZ12: angle | BA12: A (for checking) | BC12: d | BD12: x | BE12: P1 | BF12: r | BG12: P2 (for links with bents <150deg) | BH12: q | BI12: A | BJ12: A | BK12: B | BL12: B | BM12: C | BN12: C | BO12: D | BP12: D | BQ12: E | BR12: E | BS12: F | BT12: F | BU12: R | BV12: R | BW12: 0 | BX12: 1 | BY12: 11 | BZ12: 12 | CA12: 13 | CB12: 14 | CC12: 15 | CD12: 21 | CE12: 22 | CF12: 23 | CG12: 24 | CH12: 25 | CI12: 26 | CJ12: 27 | CK12: 28 | CL12: 29 | CM12: 31 | CN12: 32 | CO12: 33 | CP12: 34 | CQ12: 35 | CR12: 36 | CS12: 41 | CT12: 44 | CU12: 46 | CV12: 47 | CW12: 48 | CX12: 51 | CY12: 52 | CZ12: 56 | DA12: 63 | DB12: 64 | DC12: 67 | DD12: 75 | DE12: 77 | DF12: 98 | DH12: d | DI12: r | DJ12: x | DK12: P1 | DL12: P2 | DM12: q | DO12: Total Length of bar: | DS12: column reference: | DT12: 7 | DU12: 8 | DV12: 9 | DW12: 10 | DX12: 11 | DY12: 12 | DZ12: 13 | EB12: total length | EC12: all bar diameters that can be used | ED12: bar lengths per sheet | EG12: 137 | EU12: 151 | EV12: <- column number | EX12: 154 | FQ12: 173
C13: Pile Cap 01 | F13: 01 | G13: H | H13: 12 | I13: 10 | J13: 50 | K13: 500 | L13: =AI13 -> 5975 | M13: 21 | N13: =AJ13 -> 2500 | O13: =AK13 -> 1000 | P13: =AL13 -> (2500) | Q13: =AM13 ->  | R13: =AN13 ->  | S13: =AO13 ->  | T13: =AP13 ->  | U13: =IF($L13="?","?",IF(AND(H13<>"",K13<>"",AF13<>"",EG13=1),K13*AF13*(H13/2)^2*PI()*0.00000785,IF(AND(H13<>"",K13<>"",L13<>""),K13*L13*(H13/2)^2*PI()*0.00000785,""))) -> 2652.3 | Y13: 2500 | Z13: 1000 | AA13: 2500 | AG13: =IF(AU13>0,"*","") ->  | AH13: <- formulaes in column BC | AI13: =IF(OR(H13="",M13=""),"",IF(AF13>0,AF13,IF($M13=99,"?",INDEX(BW13:DF13,,MATCH(M13,$BW$12:$DF$12,0))))) -> 5975 | AJ13: =IF(ISERROR(BI13),L13,IF(OR(H13="",M13="",AR13=0),"",IF(M13=99,IF(Y13="","",CEILING(Y13,5)),BI13))) -> 2500 | AK13: =IF(OR(H13="",M13="",M13=0,M13=1,AR13=0),"",IF(M13=99,IF(Z13="","",CEILING(Z13,5)),IF(OR(M13=11,M13=12),"("&BK13&")",BK13))) -> 1000 | AL13: =IF(OR(H13="",M13="",M13=0,M13=1,M13=11,M13=12,M13=75,AR13=0),"",IF(M13=99,IF(AA13="","",CEILING(AA13,5)),IF(OR(M13=13,M13=14,M13=15,M13=21,M13=23,M13=24,M13=26,M13=27,M13=28,M13=29,M13=33,M13=47,M13=48,M13=51,M13=52,M13=63),"("&BM13&")",BM13))) -> (2500) | AM13: =IF(OR(H13="",AR13=0,M13="",M13=0,M13=1,M13=11,M13=12,M13=13,M13=21,M13=23,M13=33,M13=67,M13=75,M13=77,AND(AB13="",$AU13=4)),"",IF(M13=99,IF(AB13="","",CEILING(AB13,5)),IF(OR(M13=22,M13=31,M13=32,M13=36,M13=47,M13=48,M13=51,M13=52,M13=56,M13=63,M13=98),"("&BO13&")",BO13))) ->  | AN13: =IF(OR(H13="",AR13=0,AND(AC13="",$AU13=5)),"",IF(M13=99,IF(AC13="","",CEILING(AC13,5)),IF(OR(M13=24,M13=26,M13=27,M13=28,M13=29,M13=36,M13=64),BQ13,IF(OR(M13=25,M13=34,M13=35,M13=41,M13=44,M13=46,M13=56),"("&BQ13&")","")))) ->  | AO13: =IF(OR(H13="",AR13=0,AND(AD13="",$AU13=6)),"",IF(M13=99,IF(AD13="","",CEILING(AD13,5)),IF(OR(M13=34,M13=35,M13=36,M13=46),BS13,IF(OR(M13=56,M13=64),"("&BS13&")","")))) ->  | AP13: =IF(OR(H13="",AR13=0),"",IF(M13=99,IF(AE13="","",CEILING(AE13,5)),IF(OR(M13=12,M13=67),BU13,""))) ->  | AR13: =IF(OR(M13="",M13=0,M13=1,M13=11,M13=12,M13=13,M13=14,M13=15,M13=21,M13=22,M13=23,M13=24,M13=25,M13=26,M13=27,M13=28,M13=29,M13=31,M13=32,M13=33,M13=34,M13=35,M13=36,M13=41,M13=44,M13=46,M13=47,M13=48,M13=51,M13=52,M13=56,M13=63,M13=64,M13=67,M13=75,M13=77,M13=98,M13=99),1,0) -> 1 | AS13: =IF($AY$7=1,IF(OR($M13=14,$M13=15),1,IF(OR($M13=24,$M13=26,$M13=29),2,IF(OR($M13=27,$M13=28),1,IF(OR($M13=34,$M13=35,$M13=46),2,IF($M13=36,1,"-"))))), IF(OR($M13=14,$M13=15),2,IF(OR($M13=24,$M13=26,$M13=29),4,IF(OR($M13=27,$M13=28),4,IF(OR($M13=34,$M13=35,$M13=46),4,IF($M13=36,5,"-")))))) -> - | AT13: =IF($AY$7=1,IF(OR($M13=14,$M13=15),2,IF(OR($M13=24,$M13=26,$M13=29),4,IF(OR($M13=27,$M13=28),4,IF(OR($M13=34,$M13=35,$M13=46),4,IF($M13=36,5,"-"))))), IF(OR($M13=14,$M13=15),4,IF(OR($M13=24,$M13=26,$M13=29),5,IF(OR($M13=27,$M13=28),5,IF(OR($M13=34,$M13=35,$M13=46),6,IF($M13=36,6,"-")))))) -> - | AU13: =IF($AY$7=1,IF(OR(M13=14,M13=15),4,IF(OR(M13=24,M13=26,M13=27,M13=28,M13=29),5,IF(OR(M13=34,M13=35,M13=36,M13=46),6,0))), IF(OR(M13=14,M13=15,M13=27,M13=28,M13=36),1,IF(OR(M13=24,M13=26,M13=29,M13=34,M13=35,M13=46),2,0))) -> 0 | BF13: 24 | BH13: 85 | BI13: =IF(OR(M13=47,M13=48,M13=51,M13=56,M13=63,M13=64,M13=98),CEILING(BJ13,5),CEILING(MAX(Y13,IF(M13=1,IF(Y13<6000,6000,IF(Y13>12000,Y13,12000)),IF(M13=12,MAX(BU13+12+MAX(5*12,90),125),IF(M13=13,MAX(125,BK13/2+MAX(5*12,90)),IF(M13=33,BK13/2+BM13,IF(M13=52,120,125)))))),5)) -> 2500 | BJ13: =IF(OR(M13=47,M13=48),MAX(Y13,AA13,125,120),IF(OR(M13=51,M13=63),MAX(Y13,AA13,155,120),IF(M13=56,MAX(Y13,AC13,155,120),IF(M13=64,MAX(Y13,155),IF(M13=98,MAX(Y13,120),0))))) -> 0 | BK13: =IF(OR(M13="",M13=0,M13=1),"",IF(OR(M13=15,M13=51,M13=52,M13=56),CEILING(BL13,5),IF(M13=77,BL13,CEILING(IF(OR(M13=11,M13=25,M13=75),MAX(Z13,125),IF(M13=12,MAX(Z13,BU13+12+MAX(5*12,90),125),IF(OR(M13=13,M13=33),MIN(MAX(BH13,Z13),400+2*12),IF(M13=14,MAX(Z13,BH13),MAX(Z13,120))))),5)))) -> 1000 | BL13: =IF(M13=77,MAX(Z13,12),CEILING(IF(M13=15,MAX(Z13,5),IF(M13=51,MAX(Z13,AA13,155,120),IF(M13=52,MAX(Z13,AA13,125,120),IF(M13=56,MAX(Z13,AC13,155,120),0)))),5)) -> 0 | BM13: =IF(M13=77,MAX(AA13,1),IF(OR(M13="",M13=0,M13=1,M13=11,M13=12,M13=75),"",IF(OR(M13=48,M13=51,M13=52,M13=56,M13=63,M13=67,M13=98),CEILING(BN13,5),CEILING(IF(OR(M13=13,M13=33),MAX(AA13,BK13/2+MAX(5*12,90)),IF(M13=22,MIN(MAX(BH13,AA13),400+2*12),IF(M13=25,MAX(AA13,5),IF(OR(M13=14,M13=15,M13=21,M13=23,M13=24,M13=26,M13=27,M13=28,M13=29,M13=47),MAX(AA13,125),MAX(AA13,120))))),5)))) -> 2500 | BN13: =IF(OR(M13=51,M13=63),MAX(AA13,155),IF(OR(M13=48,M13=52,M13=98),MAX(AA13,125),IF(M13=56,MAX(AA13,120),IF(M13=67,MAX(AA13,5),0)))) -> 0 | BO13: =IF(OR(M13="",M13=0,M13=1,M13=11,M13=12,M13=13,M13=21,M13=23,M13=33,M13=67,M13=75,M13=77),"",IF(OR(M13=29,M13=31,M13=32,M13=36,M13=47,M13=48,M13=51,M13=52,M13=63,M13=98),CEILING(BP13,5),CEILING(IF(M13=22,MAX(AB13,BM13/2+MAX(5*12,90),125),IF(OR(M13=14,M13=15,M13=24,M13=25,M13=26,M13=27,M13=28,M13=34,M13=35,M13=46),MAX(AB13,5),MAX(AB13,120))),5))) ->  | BP13: =CEILING(IF(OR(M13=31,M13=32,M13=36,M13=98),MAX(AB13,125),IF(M13=29,MAX(AB13,BH13),IF(OR(M13=47,M13=48,M13=51,M13=52,M13=63),BM13,0))),5) -> 0 | BQ13: =IF(OR(M13=24,M13=26,M13=27,M13=28,M13=29,M13=36),CEILING(MAX(AC13,5),5),IF(OR(M13=25,M13=64),CEILING(MAX(AC13,120),5),IF(OR(M13=34,M13=35,M13=41,M13=44,M13=46),CEILING(MAX(AC13,125),5),IF(M13=56,CEILING(MAX(AC13,155),5),IF(M13=99,0,""))))) ->  | BR13: 0 | BS13: =IF(OR(M13=34,M13=35,M13=36,M13=46),CEILING(MAX(AD13,5),5),IF(M13=56,BQ13,IF(M13=64,CEILING(MAX(AD13,155),5),IF(M13=99,0,"")))) ->  | BT13: 0 | BU13: =IF(OR(M13=12,M13=67),CEILING(MAX(AE13,BF13),5),IF(M13=99,0,"")) ->  | BV13: 0 | BW13: =IF($M13=BW$12,CEILING(BI13,25),"") ->  | BX13: =IF($M13=BX$12,CEILING(BI13,25),"") ->  | BY13: =IF($M13=BY$12,CEILING(BI13+BK13-0.5*BF13-12,25),"") ->  | BZ13: =IF($M13=BZ$12,CEILING(BI13+BK13-0.43*BU13-1.2*12,25),"") ->  | CA13: =IF($M13=CA$12,CEILING(BI13+0.57*BK13+BM13-1.6*12,25),"") ->  | CD13: =IF($M13=CD$12,CEILING(BI13+BK13+BM13-BF13-2*12,25),"") -> 5975 | CE13: =IF($M13=CE$12,CEILING(BI13+BK13+0.57*BM13+BO13-0.5*BF13-2.6*12,25),"") ->  | CF13: =IF($M13=CF$12,CEILING(BI13+BK13+BM13-BF13-2*12,25),"") ->  | EB13: =IF(OR(K13="",L13="",L13="?"),0,K13*L13/1000) -> 2987.5 | EC13: 6 | ED13: =SUMIF($H$13:$H$39,EC13,$EB$13:$EB$39) -> 0 | EG13: 0
F14: 02 | G14: H | H14: 12 | I14: 10 | J14: 40 | K14: 400 | L14: 7825 | M14: 21 | N14: 3500 | O14: 860 | P14: (3500) | U14: =IF($L14="?","?",IF(AND(H14<>"",K14<>"",AF14<>"",EG14=1),K14*AF14*(H14/2)^2*PI()*0.00000785,IF(AND(H14<>"",K14<>"",L14<>""),K14*L14*(H14/2)^2*PI()*0.00000785,""))) -> 2778.9 | Y14: 3500 | Z14: 860 | AA14: 3500 | AG14: =IF(AU14>0,"*","") ->  | AI14: =IF(OR(H14="",M14=""),"",IF(AF14>0,AF14,IF($M14=99,"?",INDEX(BW14:DF14,,MATCH(M14,$BW$12:$DF$12,0))))) -> 7825 | AJ14: =IF(ISERROR(BI14),L14,IF(OR(H14="",M14="",AR14=0),"",IF(M14=99,IF(Y14="","",CEILING(Y14,5)),BI14))) -> 3500 | AK14: =IF(OR(H14="",M14="",M14=0,M14=1,AR14=0),"",IF(M14=99,IF(Z14="","",CEILING(Z14,5)),IF(OR(M14=11,M14=12),"("&BK14&")",BK14))) -> 860 | AL14: =IF(OR(H14="",M14="",M14=0,M14=1,M14=11,M14=12,M14=75,AR14=0),"",IF(M14=99,IF(AA14="","",CEILING(AA14,5)),IF(OR(M14=13,M14=14,M14=15,M14=21,M14=23,M14=24,M14=26,M14=27,M14=28,M14=29,M14=33,M14=47,M14=48,M14=51,M14=52,M14=63),"("&BM14&")",BM14))) -> (3500) | AM14: =IF(OR(H14="",AR14=0,M14="",M14=0,M14=1,M14=11,M14=12,M14=13,M14=21,M14=23,M14=33,M14=67,M14=75,M14=77,AND(AB14="",$AU14=4)),"",IF(M14=99,IF(AB14="","",CEILING(AB14,5)),IF(OR(M14=22,M14=31,M14=32,M14=36,M14=47,M14=48,M14=51,M14=52,M14=56,M14=63,M14=98),"("&BO14&")",BO14))) ->  | AN14: =IF(OR(H14="",AR14=0,AND(AC14="",$AU14=5)),"",IF(M14=99,IF(AC14="","",CEILING(AC14,5)),IF(OR(M14=24,M14=26,M14=27,M14=28,M14=29,M14=36,M14=64),BQ14,IF(OR(M14=25,M14=34,M14=35,M14=41,M14=44,M14=46,M14=56),"("&BQ14&")","")))) ->  | AO14: =IF(OR(H14="",AR14=0,AND(AD14="",$AU14=6)),"",IF(M14=99,IF(AD14="","",CEILING(AD14,5)),IF(OR(M14=34,M14=35,M14=36,M14=46),BS14,IF(OR(M14=56,M14=64),"("&BS14&")","")))) ->  | AP14: =IF(OR(H14="",AR14=0),"",IF(M14=99,IF(AE14="","",CEILING(AE14,5)),IF(OR(M14=12,M14=67),BU14,""))) ->  | AR14: =IF(OR(M14="",M14=0,M14=1,M14=11,M14=12,M14=13,M14=14,M14=15,M14=21,M14=22,M14=23,M14=24,M14=25,M14=26,M14=27,M14=28,M14=29,M14=31,M14=32,M14=33,M14=34,M14=35,M14=36,M14=41,M14=44,M14=46,M14=47,M14=48,M14=51,M14=52,M14=56,M14=63,M14=64,M14=67,M14=75,M14=77,M14=98,M14=99),1,0) -> 1 | AS14: =IF($AY$7=1,IF(OR($M14=14,$M14=15),1,IF(OR($M14=24,$M14=26,$M14=29),2,IF(OR($M14=27,$M14=28),1,IF(OR($M14=34,$M14=35,$M14=46),2,IF($M14=36,1,"-"))))), IF(OR($M14=14,$M14=15),2,IF(OR($M14=24,$M14=26,$M14=29),4,IF(OR($M14=27,$M14=28),4,IF(OR($M14=34,$M14=35,$M14=46),4,IF($M14=36,5,"-")))))) -> - | AT14: =IF($AY$7=1,IF(OR($M14=14,$M14=15),2,IF(OR($M14=24,$M14=26,$M14=29),4,IF(OR($M14=27,$M14=28),4,IF(OR($M14=34,$M14=35,$M14=46),4,IF($M14=36,5,"-"))))), IF(OR($M14=14,$M14=15),4,IF(OR($M14=24,$M14=26,$M14=29),5,IF(OR($M14=27,$M14=28),5,IF(OR($M14=34,$M14=35,$M14=46),6,IF($M14=36,6,"-")))))) -> - | AU14: =IF($AY$7=1,IF(OR(M14=14,M14=15),4,IF(OR(M14=24,M14=26,M14=27,M14=28,M14=29),5,IF(OR(M14=34,M14=35,M14=36,M14=46),6,0))), IF(OR(M14=14,M14=15,M14=27,M14=28,M14=36),1,IF(OR(M14=24,M14=26,M14=29,M14=34,M14=35,M14=46),2,0))) -> 0 | BF14: 24 | BH14: 85 | BI14: 3500 | BJ14: 0 | BK14: 860 | BL14: 0 | BM14: 3500 | BN14: 0 | BP14: 0 | BR14: 0 | BT14: 0 | BU14: =IF(OR(M14=12,M14=67),CEILING(MAX(AE14,BF14),5),IF(M14=99,0,"")) ->  | BV14: 0 | BW14: =IF($M14=BW$12,CEILING(BI14,25),"") ->  | BX14: =IF($M14=BX$12,CEILING(BI14,25),"") ->  | CD14: 7825 | DN14: 0 | DO14: A | DT14: 1 | EB14: =IF(OR(K14="",L14="",L14="?"),0,K14*L14/1000) -> 3130 | EC14: 7 | ED14: 0 | EG14: 0
F15: 03 | G15: H | H15: 12 | I15: 10 | J15: 4 | K15: 40 | L15: 3500 | M15: 11 | N15: 2500 | O15: (1000) | U15: 124.3 | Y15: 2500 | Z15: 1000 | AG15: =IF(AU15>0,"*","") ->  | AI15: =IF(OR(H15="",M15=""),"",IF(AF15>0,AF15,IF($M15=99,"?",INDEX(BW15:DF15,,MATCH(M15,$BW$12:$DF$12,0))))) -> 3500 | AJ15: 2500 | AK15: (1000) | AR15: 1 | AS15: - | AT15: - | AU15: 0 | BF15: 24 | BH15: 85 | BI15: 2500 | BJ15: 0 | BK15: 1000 | BL15: 0 | BN15: 0 | BP15: 0 | BR15: 0 | BT15: 0 | BV15: 0 | BW15: =IF($M15=BW$12,CEILING(BI15,25),"") ->  | BX15: =IF($M15=BX$12,CEILING(BI15,25),"") ->  | BY15: 3500 | DN15: 1 | DO15: A (Stock Lengths) | DT15: 1 | EB15: 140 | EC15: 8 | ED15: 0 | EG15: 0
F16: 04 | G16: H | H16: 12 | I16: 10 | J16: 6 | K16: 60 | L16: 3500 | M16: 11 | N16: 2500 | O16: (1000) | U16: 186.4 | Y16: 2500 | Z16: 1000 | AG16: =IF(AU16>0,"*","") ->  | AI16: =IF(OR(H16="",M16=""),"",IF(AF16>0,AF16,IF($M16=99,"?",INDEX(BW16:DF16,,MATCH(M16,$BW$12:$DF$12,0))))) -> 3500 | AJ16: 2500 | AK16: (1000) | AR16: 1 | AS16: - | AT16: - | AU16: 0 | BF16: 24 | BH16: 85 | BI16: 2500 | BJ16: 0 | BK16: 1000 | BL16: 0 | BN16: 0 | BP16: 0 | BR16: 0 | BT16: 0 | BV16: 0 | BW16: =IF($M16=BW$12,CEILING(BI16,25),"") ->  | BX16: =IF($M16=BX$12,CEILING(BI16,25),"") ->  | BY16: 3500 | DN16: 11 | DO16: A + (B) - 0.5r - d | DT16: 1 | DU16: 1 | EB16: 210 | EC16: 9 | ED16: 0 | EG16: 0
F17: 05 | G17: H | H17: 12 | I17: 10 | J17: 4 | K17: 40 | L17: 6000 | M17: 11 | N17: 3500 | O17: (2500) | U17: 213.1 | Y17: 3500 | Z17: 2500 | AG17: =IF(AU17>0,"*","") ->  | AI17: =IF(OR(H17="",M17=""),"",IF(AF17>0,AF17,IF($M17=99,"?",INDEX(BW17:DF17,,MATCH(M17,$BW$12:$DF$12,0))))) -> 6000 | AJ17: 3500 | AK17: (2500) | AR17: 1 | AS17: - | AT17: - | AU17: 0 | BF17: 24 | BH17: 85 | BI17: 3500 | BJ17: 0 | BK17: 2500 | BL17: 0 | BN17: 0 | BP17: 0 | BR17: 0 | BT17: 0 | BV17: 0 | BW17: =IF($M17=BW$12,CEILING(BI17,25),"") ->  | BX17: =IF($M17=BX$12,CEILING(BI17,25),"") ->  | BY17: 6000 | DN17: 12 | DO17: A + (B) - 0.43R - 1.2d | DT17: 1 | DU17: 1 | DZ17: 1 | EB17: 240 | EC17: 10 | ED17: 0 | EG17: 0
F18: 06 | G18: H | H18: 12 | I18: 10 | J18: 6 | K18: 60 | L18: 4975 | M18: 23 | N18: 1000 | O18: 1500 | P18: (2500) | U18: 265.0 | Y18: 1000 | Z18: 1500 | AA18: 2500 | AG18: =IF(AU18>0,"*","") ->  | AI18: =IF(OR(H18="",M18=""),"",IF(AF18>0,AF18,IF($M18=99,"?",INDEX(BW18:DF18,,MATCH(M18,$BW$12:$DF$12,0))))) -> 4975 | AJ18: 1000 | AK18: 1500 | AL18: (2500) | AR18: 1 | AS18: - | AT18: - | AU18: 0 | BF18: 24 | BH18: 85 | BI18: 1000 | BJ18: 0 | BK18: 1500 | BL18: 0 | BM18: 2500 | BN18: 0 | BP18: 0 | BR18: 0 | BT18: 0 | BV18: 0 | BW18: =IF($M18=BW$12,CEILING(BI18,25),"") ->  | BX18: =IF($M18=BX$12,CEILING(BI18,25),"") ->  | CF18: 4975 | DN18: 13 | DO18: A + 0.57B + (C) - 1.6d | DT18: 1 | DU18: 1 | DV18: 1 | EB18: 298.5 | EC18: 11 | ED18: 0 | EG18: 0
L19: =AI19 ->  | N19: =AJ19 ->  | AG19: =IF(AU19>0,"*","") ->  | AI19: =IF(OR(H19="",M19=""),"",IF(AF19>0,AF19,IF($M19=99,"?",INDEX(BW19:DF19,,MATCH(M19,$BW$12:$DF$12,0))))) ->  | AR19: 1 | AS19: - | AT19: - | AU19: 0 | DN19: 14 | DO19: A + (C) | DT19: 1 | DU19: 1 | DV19: 1 | DW19: =IF($AY$7=2,1,2) -> 2 | EB19: 0 | EC19: 12 | ED19: 7073.5 | EG19: 0
C20: Ground Beam 1005 | F20: 08 | G20: H | H20: 12 | I20: 1 | J20: 6 | K20: 6 | L20: =AI20 -> 8000 | M20: 00 | N20: =AJ20 -> 8000 | O20: =AK20 ->  | P20: =AL20 ->  | Q20: =AM20 ->  | R20: =AN20 ->  | S20: =AO20 ->  | T20: =AP20 ->  | U20: 42.6 | Y20: 8000 | AG20: =IF(AU20>0,"*","") ->  | AI20: =IF(OR(H20="",M20=""),"",IF(AF20>0,AF20,IF($M20=99,"?",INDEX(BW20:DF20,,MATCH(M20,$BW$12:$DF$12,0))))) -> 8000 | AJ20: 8000 | AR20: 1 | AS20: - | AT20: - | AU20: 0 | BF20: 24 | BH20: 85 | BI20: =IF(OR(M20=47,M20=48,M20=51,M20=56,M20=63,M20=64,M20=98),CEILING(BJ20,5),CEILING(MAX(Y20,IF(M20=1,IF(Y20<6000,6000,IF(Y20>12000,Y20,12000)),IF(M20=12,MAX(BU20+12+MAX(5*12,90),125),IF(M20=13,MAX(125,BK20/2+MAX(5*12,90)),IF(M20=33,BK20/2+BM20,IF(M20=52,120,125)))))),5)) -> 8000 | BJ20: =IF(OR(M20=47,M20=48),MAX(Y20,AA20,125,120),IF(OR(M20=51,M20=63),MAX(Y20,AA20,155,120),IF(M20=56,MAX(Y20,AC20,155,120),IF(M20=64,MAX(Y20,155),IF(M20=98,MAX(Y20,120),0))))) -> 0 | BK20: =IF(OR(M20="",M20=0,M20=1),"",IF(OR(M20=15,M20=51,M20=52,M20=56),CEILING(BL20,5),IF(M20=77,BL20,CEILING(IF(OR(M20=11,M20=25,M20=75),MAX(Z20,125),IF(M20=12,MAX(Z20,BU20+12+MAX(5*12,90),125),IF(OR(M20=13,M20=33),MIN(MAX(BH20,Z20),400+2*12),IF(M20=14,MAX(Z20,BH20),MAX(Z20,120))))),5)))) ->  | BL20: =IF(M20=77,MAX(Z20,12),CEILING(IF(M20=15,MAX(Z20,5),IF(M20=51,MAX(Z20,AA20,155,120),IF(M20=52,MAX(Z20,AA20,125,120),IF(M20=56,MAX(Z20,AC20,155,120),0)))),5)) -> 0 | BM20: =IF(M20=77,MAX(AA20,1),IF(OR(M20="",M20=0,M20=1,M20=11,M20=12,M20=75),"",IF(OR(M20=48,M20=51,M20=52,M20=56,M20=63,M20=67,M20=98),CEILING(BN20,5),CEILING(IF(OR(M20=13,M20=33),MAX(AA20,BK20/2+MAX(5*12,90)),IF(M20=22,MIN(MAX(BH20,AA20),400+2*12),IF(M20=25,MAX(AA20,5),IF(OR(M20=14,M20=15,M20=21,M20=23,M20=24,M20=26,M20=27,M20=28,M20=29,M20=47),MAX(AA20,125),MAX(AA20,120))))),5)))) ->  | BN20: =IF(OR(M20=51,M20=63),MAX(AA20,155),IF(OR(M20=48,M20=52,M20=98),MAX(AA20,125),IF(M20=56,MAX(AA20,120),IF(M20=67,MAX(AA20,5),0)))) -> 0 | BO20: =IF(OR(M20="",M20=0,M20=1,M20=11,M20=12,M20=13,M20=21,M20=23,M20=33,M20=67,M20=75,M20=77),"",IF(OR(M20=29,M20=31,M20=32,M20=36,M20=47,M20=48,M20=51,M20=52,M20=63,M20=98),CEILING(BP20,5),CEILING(IF(M20=22,MAX(AB20,BM20/2+MAX(5*12,90),125),IF(OR(M20=14,M20=15,M20=24,M20=25,M20=26,M20=27,M20=28,M20=34,M20=35,M20=46),MAX(AB20,5),MAX(AB20,120))),5))) ->  | BP20: =CEILING(IF(OR(M20=31,M20=32,M20=36,M20=98),MAX(AB20,125),IF(M20=29,MAX(AB20,BH20),IF(OR(M20=47,M20=48,M20=51,M20=52,M20=63),BM20,0))),5) -> 0 | BQ20: =IF(OR(M20=24,M20=26,M20=27,M20=28,M20=29,M20=36),CEILING(MAX(AC20,5),5),IF(OR(M20=25,M20=64),CEILING(MAX(AC20,120),5),IF(OR(M20=34,M20=35,M20=41,M20=44,M20=46),CEILING(MAX(AC20,125),5),IF(M20=56,CEILING(MAX(AC20,155),5),IF(M20=99,0,""))))) ->  | BR20: 0 | BS20: =IF(OR(M20=34,M20=35,M20=36,M20=46),CEILING(MAX(AD20,5),5),IF(M20=56,BQ20,IF(M20=64,CEILING(MAX(AD20,155),5),IF(M20=99,0,"")))) ->  | BT20: 0 | BV20: 0 | BW20: =IF($M20=BW$12,CEILING(BI20,25),"") -> 8000 | BX20: =IF($M20=BX$12,CEILING(BI20,25),"") ->  | BY20: =IF($M20=BY$12,CEILING(BI20+BK20-0.5*BF20-12,25),"") ->  | BZ20: =IF($M20=BZ$12,CEILING(BI20+BK20-0.43*BU20-1.2*12,25),"") ->  | CA20: =IF($M20=CA$12,CEILING(BI20+0.57*BK20+BM20-1.6*12,25),"") ->  | CD20: =IF($M20=CD$12,CEILING(BI20+BK20+BM20-BF20-2*12,25),"") ->  | CE20: =IF($M20=CE$12,CEILING(BI20+BK20+0.57*BM20+BO20-0.5*BF20-2.6*12,25),"") ->  | CF20: =IF($M20=CF$12,CEILING(BI20+BK20+BM20-BF20-2*12,25),"") ->  | DN20: 15 | DO20: A + (C) | DT20: 1 | DU20: 1 | DV20: 1 | DW20: =IF($AY$7=2,1,2) -> 2 | EB20: 48 | EC20: 13 | ED20: 0 | EG20: 0
F21: 09 | G21: H | H21: 12 | I21: 1 | J21: 6 | K21: 6 | L21: =AI21 -> 3250 | M21: 99 | N21: 1500 | O21: 700 | P21: 1000 | Q21: 400 | R21: 575 | U21: 17.3 | Y21: 1500 | Z21: 700 | AA21: 1000 | AB21: 400 | AC21: 575 | AF21: 3250 | AG21: =IF(AU21>0,"*","") ->  | AI21: =IF(OR(H21="",M21=""),"",IF(AF21>0,AF21,IF($M21=99,"?",INDEX(BW21:DF21,,MATCH(M21,$BW$12:$DF$12,0))))) -> 3250 | AJ21: 1500 | AK21: 700 | AL21: 1000 | AM21: 400 | AN21: 575 | AR21: 1 | AS21: - | AT21: - | AU21: 0 | BF21: 24 | BH21: 85 | BI21: =IF(OR(M21=47,M21=48,M21=51,M21=56,M21=63,M21=64,M21=98),CEILING(BJ21,5),CEILING(MAX(Y21,IF(M21=1,IF(Y21<6000,6000,IF(Y21>12000,Y21,12000)),IF(M21=12,MAX(BU21+12+MAX(5*12,90),125),IF(M21=13,MAX(125,BK21/2+MAX(5*12,90)),IF(M21=33,BK21/2+BM21,IF(M21=52,120,125)))))),5)) -> 1500 | BJ21: =IF(OR(M21=47,M21=48),MAX(Y21,AA21,125,120),IF(OR(M21=51,M21=63),MAX(Y21,AA21,155,120),IF(M21=56,MAX(Y21,AC21,155,120),IF(M21=64,MAX(Y21,155),IF(M21=98,MAX(Y21,120),0))))) -> 0 | BK21: =IF(OR(M21="",M21=0,M21=1),"",IF(OR(M21=15,M21=51,M21=52,M21=56),CEILING(BL21,5),IF(M21=77,BL21,CEILING(IF(OR(M21=11,M21=25,M21=75),MAX(Z21,125),IF(M21=12,MAX(Z21,BU21+12+MAX(5*12,90),125),IF(OR(M21=13,M21=33),MIN(MAX(BH21,Z21),400+2*12),IF(M21=14,MAX(Z21,BH21),MAX(Z21,120))))),5)))) -> 700 | BL21: =IF(M21=77,MAX(Z21,12),CEILING(IF(M21=15,MAX(Z21,5),IF(M21=51,MAX(Z21,AA21,155,120),IF(M21=52,MAX(Z21,AA21,125,120),IF(M21=56,MAX(Z21,AC21,155,120),0)))),5)) -> 0 | BM21: =IF(M21=77,MAX(AA21,1),IF(OR(M21="",M21=0,M21=1,M21=11,M21=12,M21=75),"",IF(OR(M21=48,M21=51,M21=52,M21=56,M21=63,M21=67,M21=98),CEILING(BN21,5),CEILING(IF(OR(M21=13,M21=33),MAX(AA21,BK21/2+MAX(5*12,90)),IF(M21=22,MIN(MAX(BH21,AA21),400+2*12),IF(M21=25,MAX(AA21,5),IF(OR(M21=14,M21=15,M21=21,M21=23,M21=24,M21=26,M21=27,M21=28,M21=29,M21=47),MAX(AA21,125),MAX(AA21,120))))),5)))) -> 1000 | BN21: =IF(OR(M21=51,M21=63),MAX(AA21,155),IF(OR(M21=48,M21=52,M21=98),MAX(AA21,125),IF(M21=56,MAX(AA21,120),IF(M21=67,MAX(AA21,5),0)))) -> 0 | BO21: =IF(OR(M21="",M21=0,M21=1,M21=11,M21=12,M21=13,M21=21,M21=23,M21=33,M21=67,M21=75,M21=77),"",IF(OR(M21=29,M21=31,M21=32,M21=36,M21=47,M21=48,M21=51,M21=52,M21=63,M21=98),CEILING(BP21,5),CEILING(IF(M21=22,MAX(AB21,BM21/2+MAX(5*12,90),125),IF(OR(M21=14,M21=15,M21=24,M21=25,M21=26,M21=27,M21=28,M21=34,M21=35,M21=46),MAX(AB21,5),MAX(AB21,120))),5))) -> 400 | BP21: =CEILING(IF(OR(M21=31,M21=32,M21=36,M21=98),MAX(AB21,125),IF(M21=29,MAX(AB21,BH21),IF(OR(M21=47,M21=48,M21=51,M21=52,M21=63),BM21,0))),5) -> 0 | BQ21: =IF(OR(M21=24,M21=26,M21=27,M21=28,M21=29,M21=36),CEILING(MAX(AC21,5),5),IF(OR(M21=25,M21=64),CEILING(MAX(AC21,120),5),IF(OR(M21=34,M21=35,M21=41,M21=44,M21=46),CEILING(MAX(AC21,125),5),IF(M21=56,CEILING(MAX(AC21,155),5),IF(M21=99,0,""))))) -> 0 | BR21: 0 | BS21: =IF(OR(M21=34,M21=35,M21=36,M21=46),CEILING(MAX(AD21,5),5),IF(M21=56,BQ21,IF(M21=64,CEILING(MAX(AD21,155),5),IF(M21=99,0,"")))) -> 0 | BT21: 0 | BU21: 0 | BV21: 0 | BW21: =IF($M21=BW$12,CEILING(BI21,25),"") ->  | BX21: =IF($M21=BX$12,CEILING(BI21,25),"") ->  | BY21: =IF($M21=BY$12,CEILING(BI21+BK21-0.5*BF21-12,25),"") ->  | BZ21: =IF($M21=BZ$12,CEILING(BI21+BK21-0.43*BU21-1.2*12,25),"") ->  | CA21: =IF($M21=CA$12,CEILING(BI21+0.57*BK21+BM21-1.6*12,25),"") ->  | CD21: =IF($M21=CD$12,CEILING(BI21+BK21+BM21-BF21-2*12,25),"") ->  | CE21: =IF($M21=CE$12,CEILING(BI21+BK21+0.57*BM21+BO21-0.5*BF21-2.6*12,25),"") ->  | CF21: =IF($M21=CF$12,CEILING(BI21+BK21+BM21-BF21-2*12,25),"") ->  | DN21: 21 | DO21: A + B + (C) - r - 2d | DT21: 1 | DU21: 1 | DV21: 1 | EB21: 19.5 | EC21: 14 | ED21: 0 | EG21: 0
N22: =AJ22 ->  | O22: =AK22 ->  | P22: =AL22 ->  | Q22: =AM22 ->  | R22: =AN22 ->  | S22: =AO22 ->  | T22: =AP22 ->  | AG22: =IF(AU22>0,"*","") ->  | AI22: =IF(OR(H22="",M22=""),"",IF(AF22>0,AF22,IF($M22=99,"?",INDEX(BW22:DF22,,MATCH(M22,$BW$12:$DF$12,0))))) ->  | AR22: 1 | AS22: - | AT22: - | AU22: 0 | DN22: 22 | DO22: A + B + 0.57C + (D) - 0.5r - 2.6d | DT22: 1 | DU22: 1 | DV22: 1 | DW22: 1 | EB22: 0 | EC22: 15 | ED22: 0
N23: =AJ23 ->  | O23: =AK23 ->  | P23: =AL23 ->  | Q23: =AM23 ->  | R23: =AN23 ->  | S23: =AO23 ->  | T23: =AP23 ->  | AG23: =IF(AU23>0,"*","") ->  | AI23: =IF(OR(H23="",M23=""),"",IF(AF23>0,AF23,IF($M23=99,"?",INDEX(BW23:DF23,,MATCH(M23,$BW$12:$DF$12,0))))) ->  | AR23: 1 | AS23: - | AT23: - | AU23: 0 | DN23: 23 | DO23: A + B + (C) - r - 2d | DT23: 1 | DU23: 1 | DV23: 1 | EB23: 0 | EC23: 16 | ED23: 0
N24: =AJ24 ->  | O24: =AK24 ->  | P24: =AL24 ->  | Q24: =AM24 ->  | R24: =AN24 ->  | S24: =AO24 ->  | T24: =AP24 ->  | AG24: =IF(AU24>0,"*","") ->  | AI24: =IF(OR(H24="",M24=""),"",IF(AF24>0,AF24,IF($M24=99,"?",INDEX(BW24:DF24,,MATCH(M24,$BW$12:$DF$12,0))))) ->  | AR24: 1 | AS24: - | AT24: - | AU24: 0 | DN24: 24 | DO24: A + B + (C) | DT24: 1 | DU24: 1 | DV24: 1 | DW24: 1 | DX24: =IF($AY$7=2,1,2) -> 2 | EB24: 0 | EC24: 17 | ED24: 0
AG25: =IF(AU25>0,"*","") ->  | AI25: =IF(OR(H25="",M25=""),"",IF(AF25>0,AF25,IF($M25=99,"?",INDEX(BW25:DF25,,MATCH(M25,$BW$12:$DF$12,0))))) ->  | AR25: 1 | AS25: - | AT25: - | AU25: 0 | DN25: 25 | DO25: A + B + (E) | DT25: 1 | DU25: 1 | DV25: 1 | DW25: 1 | DX25: 1 | EB25: 0 | EC25: 18 | ED25: 0 | EG25: 0
N26: =AJ26 ->  | O26: =AK26 ->  | P26: =AL26 ->  | Q26: =AM26 ->  | R26: =AN26 ->  | S26: =AO26 ->  | T26: =AP26 ->  | AG26: =IF(AU26>0,"*","") ->  | AI26: =IF(OR(H26="",M26=""),"",IF(AF26>0,AF26,IF($M26=99,"?",INDEX(BW26:DF26,,MATCH(M26,$BW$12:$DF$12,0))))) ->  | AR26: 1 | AS26: - | AT26: - | AU26: 0 | DN26: 26 | DO26: A + B + (C) | DT26: 1 | DU26: 1 | DV26: 1 | DW26: 1 | DX26: =IF($AY$7=2,1,2) -> 2 | EB26: 0 | EC26: 19 | ED26: 0
N27: =AJ27 ->  | O27: =AK27 ->  | P27: =AL27 ->  | Q27: =AM27 ->  | R27: =AN27 ->  | S27: =AO27 ->  | T27: =AP27 ->  | AG27: =IF(AU27>0,"*","") ->  | AI27: =IF(OR(H27="",M27=""),"",IF(AF27>0,AF27,IF($M27=99,"?",INDEX(BW27:DF27,,MATCH(M27,$BW$12:$DF$12,0))))) ->  | AR27: 1 | AS27: - | AT27: - | AU27: 0 | DN27: 27 | DO27: A + B + (C) - 0.5r - d | DT27: 1 | DU27: 1 | DV27: 1 | DW27: 1 | DX27: 2 | EB27: 0 | EC27: 20 | ED27: 0
N28: =AJ28 ->  | O28: =AK28 ->  | P28: =AL28 ->  | Q28: =AM28 ->  | R28: =AN28 ->  | S28: =AO28 ->  | T28: =AP28 ->  | AG28: =IF(AU28>0,"*","") ->  | AI28: =IF(OR(H28="",M28=""),"",IF(AF28>0,AF28,IF($M28=99,"?",INDEX(BW28:DF28,,MATCH(M28,$BW$12:$DF$12,0))))) ->  | AR28: 1 | AS28: - | AT28: - | AU28: 0 | DN28: 28 | DO28: A + B + (C) - 0.5r - d | DT28: 1 | DU28: 1 | DV28: 1 | DW28: 1 | DX28: 2 | EB28: 0 | EC28: 21 | ED28: 0
N29: =AJ29 ->  | O29: =AK29 ->  | P29: =AL29 ->  | Q29: =AM29 ->  | R29: =AN29 ->  | S29: =AO29 ->  | T29: =AP29 ->  | AG29: =IF(AU29>0,"*","") ->  | AI29: =IF(OR(H29="",M29=""),"",IF(AF29>0,AF29,IF($M29=99,"?",INDEX(BW29:DF29,,MATCH(M29,$BW$12:$DF$12,0))))) ->  | AM29: =IF(OR(H29="",AR29=0,M29="",M29=0,M29=1,M29=11,M29=12,M29=13,M29=21,M29=23,M29=33,M29=67,M29=75,M29=77,AND(AB29="",$AU29=4)),"",IF(M29=99,IF(AB29="","",CEILING(AB29,5)),IF(OR(M29=22,M29=31,M29=32,M29=36,M29=47,M29=48,M29=51,M29=52,M29=56,M29=63,M29=98),"("&BO29&")",BO29))) ->  | AN29: =IF(OR(H29="",AR29=0,AND(AC29="",$AU29=5)),"",IF(M29=99,IF(AC29="","",CEILING(AC29,5)),IF(OR(M29=24,M29=26,M29=27,M29=28,M29=29,M29=36,M29=64),BQ29,IF(OR(M29=25,M29=34,M29=35,M29=41,M29=44,M29=46,M29=56),"("&BQ29&")","")))) ->  | AO29: =IF(OR(H29="",AR29=0,AND(AD29="",$AU29=6)),"",IF(M29=99,IF(AD29="","",CEILING(AD29,5)),IF(OR(M29=34,M29=35,M29=36,M29=46),BS29,IF(OR(M29=56,M29=64),"("&BS29&")","")))) ->  | AR29: 1 | AS29: - | AT29: - | AU29: 0 | DN29: 29 | DO29: A + B + (C) | DT29: 1 | DU29: 1 | DV29: 1 | DW29: 1 | DX29: 2 | EB29: 0 | EC29: 22 | ED29: 0
N30: =AJ30 ->  | O30: =AK30 ->  | P30: =AL30 ->  | Q30: =AM30 ->  | R30: =AN30 ->  | S30: =AO30 ->  | T30: =AP30 ->  | AG30: =IF(AU30>0,"*","") ->  | AI30: =IF(OR(H30="",M30=""),"",IF(AF30>0,AF30,IF($M30=99,"?",INDEX(BW30:DF30,,MATCH(M30,$BW$12:$DF$12,0))))) ->  | AM30: =IF(OR(H30="",AR30=0,M30="",M30=0,M30=1,M30=11,M30=12,M30=13,M30=21,M30=23,M30=33,M30=67,M30=75,M30=77,AND(AB30="",$AU30=4)),"",IF(M30=99,IF(AB30="","",CEILING(AB30,5)),IF(OR(M30=22,M30=31,M30=32,M30=36,M30=47,M30=48,M30=51,M30=52,M30=56,M30=63,M30=98),"("&BO30&")",BO30))) ->  | AN30: =IF(OR(H30="",AR30=0,AND(AC30="",$AU30=5)),"",IF(M30=99,IF(AC30="","",CEILING(AC30,5)),IF(OR(M30=24,M30=26,M30=27,M30=28,M30=29,M30=36,M30=64),BQ30,IF(OR(M30=25,M30=34,M30=35,M30=41,M30=44,M30=46,M30=56),"("&BQ30&")","")))) ->  | AO30: =IF(OR(H30="",AR30=0,AND(AD30="",$AU30=6)),"",IF(M30=99,IF(AD30="","",CEILING(AD30,5)),IF(OR(M30=34,M30=35,M30=36,M30=46),BS30,IF(OR(M30=56,M30=64),"("&BS30&")","")))) ->  | AR30: 1 | AS30: - | AT30: - | AU30: 0 | DN30: 31 | DO30: A + B + C + (D) - 1.5r - 3d | DT30: 1 | DU30: 1 | DV30: 1 | DW30: 1 | EB30: 0 | EC30: 23 | ED30: 0
N31: =AJ31 ->  | O31: =AK31 ->  | P31: =AL31 ->  | Q31: =AM31 ->  | R31: =AN31 ->  | S31: =AO31 ->  | T31: =AP31 ->  | AG31: =IF(AU31>0,"*","") ->  | AI31: =IF(OR(H31="",M31=""),"",IF(AF31>0,AF31,IF($M31=99,"?",INDEX(BW31:DF31,,MATCH(M31,$BW$12:$DF$12,0))))) ->  | AR31: 1 | AS31: - | AT31: - | AU31: 0 | DN31: 32 | DO31: A + B + C + (D) - 1.5r - 3d | DT31: 1 | DU31: 1 | DV31: 1 | DW31: 1 | EB31: 0 | EC31: 24 | ED31: 0
N32: =AJ32 ->  | O32: =AK32 ->  | P32: =AL32 ->  | Q32: =AM32 ->  | R32: =AN32 ->  | S32: =AO32 ->  | T32: =AP32 ->  | AG32: =IF(AU32>0,"*","") ->  | AI32: =IF(OR(H32="",M32=""),"",IF(AF32>0,AF32,IF($M32=99,"?",INDEX(BW32:DF32,,MATCH(M32,$BW$12:$DF$12,0))))) ->  | AR32: 1 | AS32: - | AT32: - | AU32: 0 | DN32: 33 | DO32: 2A + 1.7B + 2(C) - 4d | DT32: 1 | DU32: 1 | DV32: 1 | EB32: 0 | EC32: 25 | ED32: 0
N33: =AJ33 ->  | O33: =AK33 ->  | P33: =AL33 ->  | Q33: =AM33 ->  | R33: =AN33 ->  | S33: =AO33 ->  | T33: =AP33 ->  | AG33: =IF(AU33>0,"*","") ->  | AI33: =IF(OR(H33="",M33=""),"",IF(AF33>0,AF33,IF($M33=99,"?",INDEX(BW33:DF33,,MATCH(M33,$BW$12:$DF$12,0))))) ->  | AR33: 1 | AS33: - | AT33: - | AU33: 0 | DN33: 34 | DO33: A + B + C + (E) - 0.5r - d | DT33: 1 | DU33: 1 | DV33: 1 | DW33: 1 | DX33: 1 | DY33: =IF($AY$7=2,1,2) -> 2 | EB33: 0 | EC33: 26 | ED33: 0
N34: =AJ34 ->  | O34: =AK34 ->  | P34: =AL34 ->  | Q34: =AM34 ->  | R34: =AN34 ->  | S34: =AO34 ->  | T34: =AP34 ->  | AG34: =IF(AU34>0,"*","") ->  | AI34: =IF(OR(H34="",M34=""),"",IF(AF34>0,AF34,IF($M34=99,"?",INDEX(BW34:DF34,,MATCH(M34,$BW$12:$DF$12,0))))) ->  | AR34: 1 | AS34: - | AT34: - | AU34: 0 | DN34: 35 | DO34: A + B + C + (E) - 0.5r - d | DT34: 1 | DU34: 1 | DV34: 1 | DW34: 1 | DX34: 1 | DY34: 2 | EB34: 0 | EC34: 27 | ED34: 0
N35: =AJ35 ->  | O35: =AK35 ->  | P35: =AL35 ->  | Q35: =AM35 ->  | R35: =AN35 ->  | S35: =AO35 ->  | T35: =AP35 ->  | AG35: =IF(AU35>0,"*","") ->  | AI35: =IF(OR(H35="",M35=""),"",IF(AF35>0,AF35,IF($M35=99,"?",INDEX(BW35:DF35,,MATCH(M35,$BW$12:$DF$12,0))))) ->  | AR35: 1 | AS35: - | AT35: - | AU35: 0 | DN35: 36 | DO35: A + B + C + (D) - r - 2d | DT35: 1 | DU35: 1 | DV35: 1 | DW35: 1 | DX35: 1 | DY35: 2 | EB35: 0 | EC35: 28 | ED35: 0
N36: =AJ36 ->  | O36: =AK36 ->  | P36: =AL36 ->  | Q36: =AM36 ->  | R36: =AN36 ->  | S36: =AO36 ->  | T36: =AP36 ->  | AG36: =IF(AU36>0,"*","") ->  | AI36: =IF(OR(H36="",M36=""),"",IF(AF36>0,AF36,IF($M36=99,"?",INDEX(BW36:DF36,,MATCH(M36,$BW$12:$DF$12,0))))) ->  | AR36: 1 | AS36: - | AT36: - | AU36: 0 | DN36: 41 | DO36: A + B + C + D + (E) - 2r - 4d | DT36: 1 | DU36: 1 | DV36: 1 | DW36: 1 | DX36: 1 | EB36: 0 | EC36: 29 | ED36: 0
N37: =AJ37 ->  | O37: =AK37 ->  | P37: =AL37 ->  | Q37: =AM37 ->  | R37: =AN37 ->  | S37: =AO37 ->  | T37: =AP37 ->  | AG37: =IF(AU37>0,"*","") ->  | AI37: =IF(OR(H37="",M37=""),"",IF(AF37>0,AF37,IF($M37=99,"?",INDEX(BW37:DF37,,MATCH(M37,$BW$12:$DF$12,0))))) ->  | AR37: 1 | AS37: - | AT37: - | AU37: 0 | DN37: 44 | DO37: A + B + C + D + (E) - 2r - 4d | DT37: 1 | DU37: 1 | DV37: 1 | DW37: 1 | DX37: 1 | EB37: 0 | EC37: 30 | ED37: 0
N38: =AJ38 ->  | O38: =AK38 ->  | P38: =AL38 ->  | Q38: =AM38 ->  | R38: =AN38 ->  | S38: =AO38 ->  | T38: =AP38 ->  | AG38: =IF(AU38>0,"*","") ->  | AI38: =IF(OR(H38="",M38=""),"",IF(AF38>0,AF38,IF($M38=99,"?",INDEX(BW38:DF38,,MATCH(M38,$BW$12:$DF$12,0))))) ->  | AR38: 1 | AS38: - | AT38: - | AU38: 0 | DN38: 46 | DO38: A + 2B + C + (E) | DT38: 1 | DU38: 1 | DV38: 1 | DW38: 1 | DX38: 1 | DY38: =IF($AY$7=2,1,2) -> 2 | EB38: 0 | EC38: 31 | ED38: 0
N39: =AJ39 ->  | O39: =AK39 ->  | P39: =AL39 ->  | Q39: =AM39 ->  | R39: =AN39 ->  | S39: =AO39 ->  | T39: =AP39 ->  | AG39: =IF(AU39>0,"*","") ->  | AI39: =IF(OR(H39="",M39=""),"",IF(AF39>0,AF39,IF($M39=99,"?",INDEX(BW39:DF39,,MATCH(M39,$BW$12:$DF$12,0))))) ->  | AR39: 1 | AS39: - | AT39: - | AU39: 0 | DN39: 47 | DO39: 2A + B + 2(C) +2q - 3r - 6d | DT39: 1 | DU39: 1 | DV39: 1 | EB39: 0 | EC39: 32 | ED39: 0
D40: This schedule conforms to BS 8666:2020 | L40: FREE LITE VERSION | T40: Total weight on this page [kg] = | U40: =SUM(U13:U39) -> 6279.953 | Y40: =IF(AU40>0,IF(AX8,"*make sure to enter accurate dimensions","*make sure dimensions in lighter fill colour cells do not conflict with others"),"") ->  | AU40: =SUM(AU13:AU39) -> 0 | DN40: 48 | DO40: 2A + B + 2(C) - r - 2d | DT40: 1 | DU40: 1 | DV40: 1 | EC40: 33 | ED40: 0
D41: * Specified in multiples of 5mm | L41: Status: P - Preliminary; T - Tender; C - Construction | DN41: 51 | DO41: 2(A+B+(C)) - 2.5r - 5d | DT41: 1 | DU41: 1 | DV41: 1 | EC41: 34 | ED41: 0
D42: † Specified in multiples of 25mm | DN42: 52 | DO42: 2(A+B+(C)) - 1.5r - 3d | DT42: 1 | DU42: 1 | DV42: 1 | EC42: 35 | ED42: 0
P43: Spreadsheet provided by: www.YourSpreadsheets.co.uk | DN43: 56 | DO43: A + B + C + (D) + 2(E) - 1.5r - 3d | DT43: 1 | DU43: 1 | DV43: 1 | DW43: 1 | DX43: 1 | EC43: 36 | ED43: 0
DN44: 63 | DO44: 2A + 3B + 2(C) - 3r - 6d | DT44: 1 | DU44: 1 | DV44: 1 | EC44: 37 | ED44: 0
DN45: 64 | DO45: A + B + C + 2D + E + (F) - 3r - 6d | DT45: 1 | DU45: 1 | DV45: 1 | DW45: 1 | DX45: 1 | DY45: 1 | EC45: 38 | ED45: 0
DN46: 67 | DO46: A | DT46: 1 | DU46: 1 | DV46: 1 | DZ46: 1 | EC46: 39 | ED46: 0
DN47: 75 | DO47: pi * (A - d) + B +25 | DT47: 1 | DU47: 1 | EC47: 40 | ED47: 0
DN48: 77 | DO48: C * pi * (A - d) | DT48: 1 | DU48: 1 | DV48: 1 | EC48: 41 | ED48: 0
DN49: 98 | DO49: A + 2B + C + (D) - 2r - 4d | DT49: 1 | DU49: 1 | DV49: 1 | DW49: 1 | EC49: 42 | ED49: 0
DN50: 99 | DT50: 0 | EC50: 43 | ED50: 0
EC51: 44 | ED51: 0
EC52: 45 | ED52: 0
EC53: 46 | ED53: 0
EC54: 47 | ED54: 0
EC55: 48 | ED55: 0
EC56: 49 | ED56: 0
EC57: 50 | ED57: 0

Sheet bar weights
B1: Version: 3.1. - FREE LITE VERSION | R1: © 2010-2021 Damian Janicki | AJ1: global variables:
E2: YourSpreadsheets™ Your Office Address Goes Here www.YourSpreadsheets.co.uk Tel: 010 1234 567890 (example only) | R2: =IF('bar schedule'!N2="","",'bar schedule'!N2) -> 86 MARGERY STREET, LONDON | Y2: Status: | AB2: =IF('bar schedule'!T2="","",'bar schedule'!T2) -> C | AJ2: TRUE | AK2: TRUE | AL2: TRUE | AM2: 1
Y3: Drawing No: | AB3: =IF('bar schedule'!T3="","",'bar schedule'!T3) -> A1/503
Y4: Sheet No: | AB4: =IF('bar schedule'!T4="","",'bar schedule'!T4) -> 1
R5: Job No: | U5: =IF('bar schedule'!P5="","",'bar schedule'!P5) -> 22190 | Y5: Revision: | AB5: =IF('bar schedule'!T5="","",'bar schedule'!T5) -> A
C6: Section: | E6: Summary of Bar weights | R6: Prepared By: | U6: =IF('bar schedule'!P6="","",'bar schedule'!P6) -> DJ | Y6: Date: | AB6: =IF('bar schedule'!T6="","",'bar schedule'!T6) -> 2021-05-31
C7: Location: | E7: =IF('bar schedule'!E7="","",'bar schedule'!E7) -> Foundations | R7: Checked By: | U7: =IF('bar schedule'!P7="","",'bar schedule'!P7) -> DJ | Y7: Last Revised: | AB7: =IF('bar schedule'!T7="","",'bar schedule'!T7) -> 2013-11-26 | AJ7: bar diameter | AK7: total bar length per diametere [VBA column] | AL7: bar diameters used | AM7: counter | AN7: first 10 bar diameters to be summed | AO7: bar lengths
AJ8: 6 | AK8: 0 | AL8: =IF(AK8=0,"",AJ8) ->  | AM8: 1 | AN8: =IFERROR(SMALL($AL$8:$AL$52,AM8),"") -> 12 | AO8: =IFERROR(INDEX($AK$8:$AK$52,MATCH(AN8,$AJ$8:$AJ$52,0)),"") -> 7073.5
AJ9: 7 | AK9: 0 | AL9: =IF(AK9=0,"",AJ9) ->  | AM9: 2
J10: Summary of bar lengths and weights | AJ10: 8 | AK10: 0 | AM10: 3
AJ11: 9 | AK11: 0 | AM11: 4
J12: Bar size | M12: Total length [m] (of all bars in this size) | V12: Weight [kg] | AJ12: 10 | AK12: 0 | AM12: 5
AJ13: 11 | AK13: 0 | AM13: 6
J14: =AN8 -> 12 | M14: =AO8 -> 7073.500 | V14: =IF(J14="","",M14*(J14/2)^2*PI()*0.00785) -> 6279.953 | AJ14: 12 | AK14: 7073.5 | AL14: 12 | AM14: 7
AJ15: 13 | AK15: 0 | AM15: 8
J16: =AN9 ->  | M16: =AO9 ->  | V16: =IF(J16="","",M16*(J16/2)^2*PI()*0.00785) ->  | AJ16: 14 | AK16: 0 | AM16: 9
AJ17: 15 | AK17: 0 | AM17: 10
J18: =AN10 ->  | M18: =AO10 ->  | V18: =IF(J18="","",M18*(J18/2)^2*PI()*0.00785) ->  | AJ18: 16 | AK18: 0
AJ19: 17 | AK19: 0
J20: =AN11 ->  | M20: =AO11 ->  | V20: =IF(J20="","",M20*(J20/2)^2*PI()*0.00785) ->  | AJ20: 18 | AK20: 0
AJ21: 19 | AK21: 0
J22: =AN12 ->  | M22: =AO12 ->  | V22: =IF(J22="","",M22*(J22/2)^2*PI()*0.00785) ->  | AJ22: 20 | AK22: 0
AJ23: 21 | AK23: 0
J24: =AN13 ->  | M24: =AO13 ->  | V24: =IF(J24="","",M24*(J24/2)^2*PI()*0.00785) ->  | AJ24: 22 | AK24: 0
AJ25: 23 | AK25: 0
J26: =AN14 ->  | M26: =AO14 ->  | V26: =IF(J26="","",M26*(J26/2)^2*PI()*0.00785) ->  | AJ26: 24 | AK26: 0
AJ27: 25 | AK27: 0
J28: =AN15 ->  | M28: =AO15 ->  | V28: =IF(J28="","",M28*(J28/2)^2*PI()*0.00785) ->  | AJ28: 26 | AK28: 0
AJ29: 27 | AK29: 0
J30: =AN16 ->  | M30: =AO16 ->  | V30: =IF(J30="","",M30*(J30/2)^2*PI()*0.00785) ->  | AJ30: 28 | AK30: 0
AJ31: 29 | AK31: 0
J32: =AN17 ->  | M32: =AO17 ->  | V32: =IF(J32="","",M32*(J32/2)^2*PI()*0.00785) ->  | AJ32: 30 | AK32: 0
AJ33: 31 | AK33: 0
AJ34: 32 | AK34: 0
Q35: Total weight [kg] | V35: =SUM(V14:Y33) -> 6279.953 | AJ35: 33 | AK35: 0
AJ36: 34 | AK36: 0
AJ37: 35 | AK37: 0
AJ38: 36 | AK38: 0
I39: =IF(COUNT($AL$8:$AL$57)>10,"PLEASE NOTE: only up to 10 bar diameters can be summed in this spreadsheet. BS8666:2020 covers 10 bar diameters only.","") ->  | AJ39: 37 | AK39: 0
AJ40: 38 | AK40: 0
AJ41: 39 | AK41: 0
AJ42: 40 | AK42: 0
C43: Additional information: | AJ43: 41 | AK43: 0
AJ44: 42 | AK44: 0
AJ45: 43 | AK45: 0
AJ46: 44 | AK46: 0
AJ47: 45 | AK47: 0
AJ48: 46 | AK48: 0
AJ49: 47 | AK49: 0
AJ50: 48 | AK50: 0
AJ51: 49 | AK51: 0
AJ52: 50 | AK52: 0
D67: This schedule conforms to BS 8666:2020
M68: Status: P - Preliminary; T - Tender; C - Construction
V70: Spreadsheet provided by: www.YourSpreadsheets.co.uk

Sheet shape codes

Sheet template (hidden)
A1: 26
A2: 1
D4: drawing size: | G4: 7 x | H4: 7
E6: drawing area: | O6: drawing tools:
O8: dimension: | Q8: box:
O9: line: | Q9: arrow:
O10: bend: | Q10: arrow:
O11: text: | Q11: thread:
O13: drag elemens into the drawing area and adjust
E19: INSTRUCTIONS:
E20: You may import a shape diagram from an external source, it must be an image but you may resize and annoate it here once imported. Alternatively you may draw a new shape diagram here. Use either the standard drawing tools in Excel (you will find these under the 'Insert' menu in the Ribbon), or drag elements from the 'drawing tools' to the 'drawing area' and adjust these to suit (e.g. change colour, text, size, rotation, scale). NOTE: to delete an object just select it and press 'delete' key. NOTE: avoid drawing right next to the drawing area's border line as edges will be cropped when importing to schedule.

Sheet from author
B1: Version: 3.1. - FREE LITE VERSION | G1: © 2010-2021 Damian Janicki
C3: For latest updates and news visit: | G3: Contact me at:
C4: www.YourSpreadsheets.co.uk | G4: info@yourspreadsheets.co.uk
C7: General information: NOTE: This spreadsheet contains macros. As this spreadsheets contains 'conditional formatting' it is recommended, when pasting data, to paste 'values only'. Furthermore to protect conditional formatting macro pasting 'values only' is assigned to Ctrl+v. | N7: Video tutorial: It is recommended to watch the video tutorial linked below to learn how to use the spreadsheet efficiently.
C13: The Author takes no liability for use of this spreadsheet and gives no guarantee that it is error free. In no event shall the Author be responsible for any special, incidental or consequential damages whatsoever arising from the use of this spreadsheet, even if the Author has been advised of the possibility of such damage. This spreadsheet is a lite version and is a freeware and can be distributed freely but only in its original form. Reverse-engineering, decompiling or disassembling of this spreadsheet is not allowed. By using this spreadsheet you understand and agree with the above terms and conditions. You also acknowledge that you do not become the owner of this spreadsheet. Damian Janicki
N26: Keyboard shortcuts: Ctrl + Shift + P to activate/deactivate pop-up window with Shapes Codes Ctrl + Shift + N to activate/deactivate auto-jump to next input cell Ctrl + Shift + E to activate/deactivate calculation of extra dimensions. In 'Settings' chose whether the extra dimension is horizontal or diagonal
C35: This is a Free Lite version. The full version of the spreadsheet allows to: - input your company details and change logo; - change bar diameter and number; - use all shape codes from BS 8666:2020; - input data in the highlighted locked cells; - add/rename/delete/export sheets; - detail a different bar diameter than 12mm;
C46: This spreadsheet is based on BS 8666: 2020. Changelog: 31.05.2021 - v.3.1. - updated to BS8666:2020 - added two new shape codes, updated length calculations, updated bends, introduced calculation of extra dimensions (e.g. shape code 15). Input cell are now 1x1 rather than 2x2 (making it easier to copy and paste bar details between diffferent sources). It is now possible to sum bar diameters that are not covered by BS8666 (e.g. bar diameter 22 is used in Singapore together with BS8666). You can now insert images for shape code 99 - these can be imported and annotated; or can be drawn directly in this spreadsheet. Shape code 99 images can be re-arranged once inserted into schedule. 17.12.2020 - v.2.8. - when exporting parentheses now do not change to negative numbers. 24.11.2013 - v.2.7. - increased minimum P value for links with bents < 150 degrees. Added option to select a printer and pages to print when printing using 'Print Me' button or by pressing Ctrl+P (for standard printing options use Ribbon/Menu) 27.05.2013 - v.2.6. - added an indication when user enters a length that is lower than a minimum required. 18.07.2012 - v.2.5. - it is now possible to refresh conditional formatting by press Ctrl + Shift + R. This helps if spreadsheet runs slow. It is also possible to export BBS to a new file which is editable and not password protected (file can be sent to Client etc). Press Ctrl + Shift + E to export. Added shortcuts for activating/deactivating auto-jump to next 'fill in' cell Ctrl + Shift + N and pop up window with Shape Codes Ctrl + Shift + P. 24.03.2012 - v.2.4. - option to show pop-up window or jump to next cell is now global. This means that changing it on one sheet will change it on all sheets. 03.01.2012 - v.2.3. - when cells are merged, for mesh or bar mark 99, then bar weight is calculated based on length given in 'overwrite length' cell. 22.10.2011 - v.2.2. - added graphic for shape code 14 in shape code reference tab. 14.08.2011 - v.2.1. - assigned to a new domain: www.YourSpreadsheets.co.uk 12.08.2011 - v.1.10. - after entering shape code, active cell is set to input field - length 'A'. 10.03.2011 - v.1.9. - added button to print all pages. Other minor changes. 27.11.2010 - v.1.8. - cell protection revised to work on Excel 97 and older. 29.09.2010 - v.1.7. - spreadsheet activation is now required (note from the Author revised). Minor changes to company/project input table. 04.09.2010 - v.1.6. - added option to merge cells (for scheduling mesh). 31.07.2010 - v.1.5. - sheet with summary of bar weights added. 06.07.2010 - v.1.4. - revised macros and 'shape code' sheet (with option to delete it). 01.06.2010 - v.1.3. - conditional formatting revised. shape code pop-up window added. 'delete entries' macro is now reversible. Note from the Author revised. 22.05.2010 - v.1.2. - official release of the spreadsheets.
